bitfinex/quotes_BTCUSD_20251116
["timestamp","ask_amount","ask_price","bid_price","bid_amount"]
[1763308593922,0.0001353,94796.0,94793.0,0.21098409]
[1763308594126,0.0001353,94796.0,94789.0,0.09463]
[1763308594306,0.0001353,94796.0,94793.0,0.21098447]
[1763308594711,0.0001353,94796.0,94793.0,0.21098406]
[1763308595422,0.0001353,94796.0,94793.0,0.21098389]
[1763308595927,0.0001353,94796.0,94788.0,0.2448557]
[1763308596123,0.0001353,94796.0,94781.0,0.03386]
[1763308596124,0.00619155,94796.0,94781.0,0.03386]
[1763308596325,0.21099138,94792.0,94783.0,0.21100701]
[1763308596527,0.21099405,94790.0,94781.0,0.03386]
[1763308596999,0.21099405,94790.0,94782.0,0.21101052]
[1763308597427,0.21099405,94790.0,94789.0,0.00035994]
[1763308597637,0.0001353,94796.0,94789.0,0.00035994]
[1763308597751,0.0001353,94796.0,94781.0,0.03386]
[1763308597752,0.0001353,94796.0,94782.0,0.21101052]
[1763308597956,0.00619155,94796.0,94787.0,0.21099772]
[1763308598392,0.0001353,94796.0,94788.0,0.09463]
[1763308598610,0.21096963,94801.0,94788.0,0.09463]
[1763308598811,0.21098107,94796.0,94788.0,0.09463]
[1763308599014,0.2214971,94810.0,94781.0,0.03386]
[1763308599015,0.21100715,94784.0,94781.0,0.03386]
[1763308599230,0.21100715,94784.0,94781.0,0.0001353]
[1763308599432,0.09935212,94791.0,94781.0,0.0001353]
[1763308599647,0.01054518,94830.0,94786.0,0.21100075]
[1763308599648,0.21096823,94801.0,94786.0,0.21100075]
[1763308599858,0.21098107,94796.0,94781.0,0.0001353]
[1763308600064,0.00605625,94795.0,94786.0,0.21100088]
[1763308600274,0.2109627,94804.0,94792.0,0.21098645]
[1763308600477,0.00605625,94803.0,94789.0,0.21099317]
[1763308600694,0.00605625,94803.0,94785.0,0.21100236]
[1763308600912,0.01054629,94820.0,94802.0,0.03386]
[1763308601128,0.01660254,94820.0,94802.0,0.03386]
[1763308601371,0.21094331,94813.0,94803.0,0.21096378]
[1763308601583,0.00605625,94812.0,94803.0,0.21096378]
[1763308601783,0.21095109,94809.0,94802.0,0.03386]
[1763308601984,0.21096018,94805.0,94802.0,0.03386]
[1763308602211,0.00605625,94804.0,94783.0,0.09463]
[1763308602407,0.09935212,94808.0,94770.0,0.01055186]
[1763308602408,0.21098991,94792.0,94782.0,0.21101052]
[1763308602600,0.2109859,94794.0,94785.0,0.21100309]
[1763308602804,0.21098966,94792.0,94783.0,0.2110083]
[1763308603135,0.10287518,94830.0,94807.0,0.03386]
[1763308603343,0.21094934,94810.0,94807.0,0.03386]
[1763308603545,0.21096928,94801.0,94799.0,0.03386]
[1763308603882,0.09935212,94808.0,94750.0,0.02250068]
[1763308603883,0.01097,94794.0,94750.0,0.02250068]
[1763308604101,0.01097,94794.0,94740.0,0.00052]
[1763308604102,0.04906,94755.0,94740.0,0.00052]
[1763308604315,0.21110184,94741.0,94740.0,0.00052]
[1763308604549,0.27443024,94741.0,94740.0,0.00052]
[1763308604862,0.70621301,94741.0,94740.0,0.00052]
[1763308605338,0.64084898,94741.0,94740.0,0.00097014]
[1763308605553,0.64084898,94741.0,94734.0,0.00132217]
[1763308605554,0.2111105,94738.0,94734.0,0.00132217]
[1763308605784,0.2111105,94738.0,94734.0,0.00124434]
[1763308605785,0.323,94735.0,94734.0,0.00124434]
[1763308606014,0.41796283,94735.0,94734.0,0.00124434]
[1763308606729,0.38900608,94735.0,94734.0,0.00124434]
[1763308606924,0.40825959,94735.0,94734.0,0.00124434]
[1763308607130,0.34225351,94735.0,94734.0,0.00124434]
[1763308607352,0.38567225,94735.0,94734.0,0.00124434]
[1763308607563,0.34225351,94735.0,94734.0,0.00124434]
[1763308607773,0.01925351,94735.0,94734.0,0.00124434]
[1763308608196,0.00045069,94738.0,94735.0,0.21111521]
[1763308608405,0.00045069,94738.0,94736.0,0.02123596]
[1763308608623,0.00045069,94738.0,94735.0,0.09463]
[1763308608994,0.00045069,94738.0,94736.0,0.21111298]
[1763308609225,0.00045069,94738.0,94735.0,0.0894]
[1763308609606,0.00045069,94738.0,94734.0,0.00124434]
[1763308609807,0.21111075,94737.0,94734.0,0.00124434]
[1763308610353,0.21111521,94735.0,94734.0,0.00124434]
[1763308610598,0.23037547,94735.0,94734.0,0.00124434]
[1763308610821,0.55337547,94735.0,94734.0,0.00124434]
[1763308611703,0.23037547,94735.0,94734.0,0.00124434]
[1763308611900,0.23035737,94735.0,94734.0,0.00124434]
[1763308612130,0.27050557,94735.0,94734.0,0.00124434]
[1763308612749,0.21637907,94735.0,94734.0,0.00124434]
[1763308612956,0.01924216,94735.0,94734.0,0.00124434]
[1763308613165,0.00045069,94738.0,94734.0,0.00124434]
[1763308614041,0.00045069,94738.0,94735.0,0.30574521]
[1763308614243,0.00045069,94738.0,94734.0,0.00130434]
[1763308614657,0.00045069,94738.0,94735.0,0.09463]
[1763308614862,0.00045069,94738.0,94736.0,0.23222427]
[1763308615062,0.00045069,94738.0,94736.0,0.21111298]
[1763308615382,0.00045069,94738.0,94737.0,0.14381]
[1763308615509,0.00045069,94738.0,94734.0,0.00142434]
[1763308615510,0.25866075,94737.0,94734.0,0.00142434]
[1763308615941,0.21111521,94735.0,94734.0,0.00142434]
[1763308616322,0.53411521,94735.0,94734.0,0.00142434]
[1763308616524,0.5533346,94735.0,94734.0,0.00142434]
[1763308616670,0.59675334,94735.0,94734.0,0.00142434]
[1763308616871,0.57589513,94735.0,94734.0,0.00142434]
[1763308617254,0.00045069,94738.0,94734.0,0.00142434]
[1763308617465,0.31046287,94737.0,94734.0,0.00142434]
[1763308617644,0.21111521,94735.0,94734.0,0.00142434]
[1763308617870,0.00045069,94738.0,94734.0,0.00142434]
[1763308618101,0.21111521,94735.0,94734.0,0.00142434]
[1763308618541,0.21111075,94737.0,94734.0,0.00142434]
[1763308618735,0.21111521,94735.0,94734.0,0.00142434]
[1763308618973,0.2539885,94735.0,94734.0,0.00142434]
[1763308619428,0.00045069,94738.0,94734.0,0.00142434]
[1763308619668,0.21111075,94737.0,94734.0,0.00142434]
[1763308619907,0.00045069,94738.0,94700.0,0.01609]
[1763308619908,0.323,94722.0,94700.0,0.01609]
[1763308620133,0.323,94701.0,94700.0,0.01385474]
[1763308620353,0.39563991,94701.0,94700.0,0.01385474]
[1763308620610,0.39563991,94701.0,94700.0,1e-08]
[1763308620611,0.43905865,94701.0,94700.0,1e-08]
[1763308620820,0.46164198,94701.0,94700.0,1e-08]
[1763308621035,0.4364563,94701.0,94700.0,1e-08]
[1763308621261,0.40867352,94701.0,94700.0,1e-08]
[1763308621877,0.40867352,94701.0,94694.0,0.4768551]
[1763308621878,0.57762313,94695.0,94694.0,0.4768551]
[1763308622077,0.61942749,94695.0,94694.0,0.4768551]
[1763308622845,0.23378772,94695.0,94694.0,0.4768551]
[1763308623026,0.02258333,94697.0,94694.0,0.4768551]
[1763308623231,0.00045042,94701.0,94695.0,0.02112043]
[1763308623345,0.00045042,94701.0,94694.0,0.4768551]
[1763308623553,0.21120023,94697.0,94694.0,0.4768551]
[1763308623745,0.00045042,94701.0,94695.0,0.09689]
[1763308623951,0.21164227,94701.0,94695.0,0.09689]
[1763308624185,0.00045042,94701.0,94695.0,0.09689]
[1763308624390,0.21119324,94700.0,94696.0,0.05837451]
[1763308624604,0.00045042,94701.0,94696.0,0.09689]
[1763308625022,0.00045042,94701.0,94697.0,0.02111999]
[1763308625229,0.00045042,94701.0,94696.0,0.09689]
[1763308625438,0.21119324,94700.0,94697.0,0.02111999]
[1763308625646,0.21119324,94700.0,94694.0,0.4770951]
[1763308625647,0.21120439,94695.0,94694.0,0.4770951]
[1763308625862,0.25462313,94695.0,94694.0,0.4771551]
[1763308626072,0.25298943,94695.0,94694.0,0.4772151]
[1763308626499,0.23376386,94695.0,94694.0,0.4772151]
[1763308626700,0.21120439,94695.0,94694.0,0.4772151]
[1763308626969,0.25864967,94695.0,94694.0,0.4772151]
[1763308627174,0.25302225,94695.0,94694.0,0.4772151]
[1763308627364,0.23376386,94695.0,94694.0,0.48001855]
[1763308627570,0.2530225,94695.0,94694.0,0.48001855]
[1763308627767,0.25302261,94695.0,94694.0,0.48007855]
[1763308628015,0.25302261,94695.0,94694.0,0.48013855]
[1763308628225,0.25302261,94695.0,94694.0,0.48019855]
[1763308628435,0.29644135,94695.0,94694.0,0.48019855]
[1763308628653,0.6570255,94695.0,94694.0,0.48019855]
[1763308628872,0.25302261,94695.0,94694.0,0.48019855]
[1763308629502,0.04181822,94695.0,94694.0,0.48019855]
[1763308629718,0.01925875,94695.0,94694.0,0.52921841]
[1763308629926,0.01925875,94695.0,94694.0,0.48019855]
[1763308630148,0.21119547,94699.0,94694.0,0.48019855]
[1763308630426,0.21120124,94697.0,94694.0,0.4774551]
[1763308630662,0.09935212,94695.0,94694.0,0.4774551]
[1763308630905,0.0193071,94695.0,94694.0,0.4774551]
[1763308631109,0.23051219,94695.0,94694.0,0.4774551]
[1763308631315,0.25307166,94695.0,94694.0,0.4774551]
[1763308631514,0.6194904,94695.0,94694.0,0.4774551]
[1763308631790,0.6194904,94695.0,94694.0,0.47592103]
[1763308632246,0.6194904,94695.0,94694.0,0.39020387]
[1763308632718,0.6194904,94695.0,94690.0,0.01]
[1763308632719,0.6194904,94695.0,94666.0,7.36029502]
[1763308632720,0.04341874,94679.0,94666.0,7.36029502]
[1763308632969,0.04341874,94679.0,94666.0,6.03871293]
[1763308632970,0.5776856,94667.0,94666.0,6.03871293]
[1763308633159,0.62919778,94667.0,94666.0,5.83029207]
[1763308633276,0.62919778,94667.0,94666.0,5.55258412]
[1763308633484,0.62919778,94667.0,94666.0,5.13979394]
[1763308633729,0.70384897,94667.0,94666.0,4.99368999]
[1763308634068,0.70384897,94667.0,94666.0,4.73997744]
[1763308634241,0.70429911,94667.0,94666.0,4.2810593]
[1763308634475,0.66394706,94667.0,94666.0,3.90066257]
[1763308634680,0.66394706,94667.0,94666.0,3.65577322]
[1763308634863,0.66394706,94667.0,94650.0,0.534]
[1763308634864,0.21130257,94651.0,94650.0,0.534]
[1763308635122,0.26277725,94651.0,94650.0,0.534]
[1763308635324,0.25316984,94651.0,94650.0,0.534]
[1763308635545,0.07009802,94651.0,94650.0,0.534]
[1763308635715,0.06272654,94651.0,94650.0,0.534]
[1763308636053,0.0193078,94651.0,94650.0,0.534]
[1763308636260,0.0193078,94651.0,94650.0,0.53796457]
[1763308636470,0.02861572,94676.0,94650.0,0.53796457]
[1763308636688,0.01920372,94675.0,94651.0,0.02113025]
[1763308636901,0.48138811,94670.0,94650.0,0.53445014]
[1763308637130,0.21129601,94654.0,94650.0,0.53445014]
[1763308637344,0.01920372,94653.0,94650.0,0.53445014]
[1763308637557,0.01920372,94652.0,94650.0,0.53445014]
[1763308637771,0.02255947,94689.0,94650.0,0.53445014]
[1763308637772,0.02823088,94678.0,94659.0,0.21128438]
[1763308638020,0.025252,94677.0,94651.0,0.09207]
[1763308638235,0.00605625,94677.0,94674.0,0.21124954]
[1763308638441,0.00605625,94677.0,94652.0,0.11076674]
[1763308638442,0.02823088,94705.0,94652.0,0.11076674]
[1763308638444,0.02823088,94721.0,94702.0,0.21118876]
[1763308638670,0.04820043,94730.0,94670.0,0.010563]
[1763308638671,0.21115087,94719.0,94697.0,0.04659]
[1763308638875,0.21115533,94717.0,94697.0,0.04659]
[1763308639083,0.02526825,94716.0,94705.0,0.21118026]
[1763308639329,0.02526825,94716.0,94698.0,0.09207]
[1763308639330,0.019212,94715.0,94709.0,0.21117111]
[1763308639537,0.00605625,94714.0,94698.0,0.09207]
[1763308639737,0.019212,94713.0,94709.0,0.00013492]
[1763308639943,0.00605625,94712.0,94709.0,0.00013492]
[1763308640355,0.00605625,94723.0,94709.0,0.00013492]
[1763308640558,0.21111726,94735.0,94709.0,0.00013492]
[1763308640559,0.01922648,94722.0,94710.0,0.09207]
[1763308640766,0.01922648,94721.0,94719.0,0.21114931]
[1763308640982,0.00605625,94735.0,94721.0,0.04659]
[1763308641211,0.03764412,94755.0,94726.0,0.21113487]
[1763308641212,0.01922939,94734.0,94726.0,0.21113487]
[1763308641444,0.01922939,94733.0,94729.0,0.21112825]
[1763308641680,0.00605625,94744.0,94722.0,0.09207]
[1763308641892,0.2111389,94725.0,94721.0,0.04659]
[1763308642124,0.2111389,94725.0,94709.0,0.00013492]
[1763308642125,0.21116582,94713.0,94709.0,0.00013492]
[1763308642346,0.11858042,94724.0,94709.0,0.00013492]
[1763308642347,0.25458968,94710.0,94709.0,0.00013492]
[1763308642585,0.29637019,94710.0,94709.0,0.00013492]
[1763308642819,0.04178051,94710.0,94709.0,0.00013492]
[1763308643050,0.02528455,94710.0,94709.0,0.00013492]
[1763308643266,0.23039924,94710.0,94709.0,0.00013492]
[1763308643697,0.25295145,94710.0,94709.0,0.00013492]
[1763308644132,0.25295145,94710.0,94650.0,0.74530261]
[1763308644133,0.21124751,94676.0,94650.0,0.74530261]
[1763308644379,0.00013497,94676.0,94655.0,0.09207]
[1763308644627,0.21126568,94668.0,94655.0,0.09207]
[1763308644855,0.23049545,94667.0,94650.0,0.534]
[1763308645076,0.04177857,94666.0,94651.0,0.09207]
[1763308645293,0.23049768,94665.0,94650.0,0.534]
[1763308645498,0.04177857,94664.0,94650.0,0.534]
[1763308645710,0.01922636,94663.0,94659.0,0.21128393]
[1763308645917,0.03442468,94676.0,94665.0,0.21127132]
[1763308646124,0.01924203,94675.0,94661.0,0.21127578]
[1763308646346,0.02529828,94675.0,94672.0,0.21125507]
[1763308646556,0.01924203,94674.0,94663.0,0.21127578]
[1763308646761,0.01924203,94674.0,94662.0,0.09207]
[1763308646987,0.00013497,94676.0,94671.0,0.21125596]
[1763308647198,0.00013497,94676.0,94673.0,0.2112528]
[1763308647405,0.02823346,94697.0,94694.0,0.21120472]
[1763308647618,0.02823346,94697.0,94682.0,0.21123317]
[1763308647619,0.00605625,94700.0,94698.0,0.2111968]
[1763308647821,0.02825784,94713.0,94710.0,0.21117056]
[1763308648000,0.02860846,94734.0,94720.0,0.21114864]
[1763308648207,0.02860846,94734.0,94711.0,0.09207]
[1763308648208,0.00013535,94734.0,94711.0,0.09207]
[1763308648445,0.00013535,94734.0,94731.0,0.21112362]
[1763308648669,0.00013535,94734.0,94711.0,0.09207]
[1763308648670,0.00013535,94734.0,94725.0,0.21113679]
[1763308648884,0.00013535,94734.0,94711.0,0.09207]
[1763308648885,0.00013535,94734.0,94713.0,0.21116425]
[1763308649089,0.00013535,94734.0,94718.0,0.31050496]
[1763308649293,0.00013535,94734.0,94721.0,0.2111462]
[1763308649500,0.00013535,94734.0,94716.0,0.09207]
[1763308649704,0.00013535,94734.0,94701.0,0.09207]
[1763308649906,0.00013535,94734.0,94695.0,0.21120403]
[1763308649907,0.01055631,94730.0,94695.0,0.21120403]
[1763308650126,0.01055743,94720.0,94694.0,0.04659]
[1763308650356,0.21118787,94703.0,94694.0,0.04659]
[1763308650560,0.03764412,94721.0,94695.0,0.19142212]
[1763308650769,0.21118499,94704.0,94695.0,0.09207]
[1763308650975,0.00605625,94703.0,94695.0,0.09207]
[1763308651376,0.21118615,94704.0,94695.0,0.09207]
[1763308651488,0.00605625,94703.0,94695.0,0.09207]
[1763308651694,0.00013532,94703.0,94695.0,0.09207]
[1763308652295,0.00013532,94703.0,94702.0,0.21118878]
[1763308653719,0.00013532,94703.0,94701.0,0.21118972]
[1763308653938,0.00013532,94703.0,94694.0,0.04659]
[1763308654141,0.21118878,94702.0,94694.0,0.14655]
[1763308654342,0.21119324,94700.0,94694.0,0.14655]
[1763308654578,0.00013532,94703.0,94694.0,0.14655]
[1763308654774,0.00619157,94703.0,94694.0,0.14655]
[1763308654999,0.00619157,94703.0,94695.0,0.09996]
[1763308655199,0.00619157,94703.0,94699.0,0.2111937]
[1763308655407,0.00013532,94703.0,94701.0,0.21118961]
[1763308655827,0.00013532,94703.0,94702.0,0.09996]
[1763308656027,0.00013532,94703.0,94685.0,0.21122539]
[1763308656028,0.00013532,94703.0,94683.0,0.04704]
[1763308656262,0.21118878,94702.0,94699.0,6e-05]
[1763308656470,0.21119324,94700.0,94699.0,0.00012]
[1763308656666,0.25461198,94700.0,94699.0,0.00018]
[1763308656961,0.23379172,94700.0,94699.0,0.00024]
[1763308657130,0.21119324,94700.0,94699.0,0.00024]
[1763308657378,0.21119324,94700.0,94699.0,0.0003]
[1763308657582,0.23379096,94701.0,94699.0,0.00036]
[1763308657796,0.02865473,94700.0,94699.0,0.00036]
[1763308657945,0.02259848,94700.0,94699.0,0.00036]
[1763308658143,0.00013532,94703.0,94701.0,0.21118888]
[1763308658351,0.00605625,94714.0,94702.0,0.04704]
[1763308658561,0.02865473,94726.0,94711.0,0.21116736]
[1763308658767,0.00605625,94726.0,94704.0,0.21118432]
[1763308658965,0.02259568,94736.0,94720.0,0.21114715]
[1763308659167,0.00013527,94736.0,94726.0,0.21113365]
[1763308659397,0.00013527,94736.0,94702.0,0.04956155]
[1763308659398,0.00013527,94736.0,94727.0,0.09996]
[1763308659747,0.00013527,94736.0,94728.0,0.21113081]
[1763308659993,0.00013527,94736.0,94727.0,0.09996]
[1763308660262,0.00013527,94736.0,94733.0,0.21111967]
[1763308660438,0.00013527,94736.0,94735.0,0.21111521]
[1763308661512,0.00013527,94736.0,94731.0,0.09935212]
[1763308661713,0.00013527,94736.0,94735.0,0.21111521]
[1763308663396,0.00013527,94736.0,94735.0,0.21117521]
[1763308664604,0.00013527,94736.0,94735.0,0.21278182]
[1763308665064,0.05853772,94763.0,94749.0,0.21108218]
[1763308665197,0.21105506,94762.0,94736.0,0.09996]
[1763308665400,0.00045081,94763.0,94762.0,0.00085851]
[1763308667247,0.00045081,94763.0,94762.0,0.10081851]
[1763308669934,0.00045081,94763.0,94762.0,0.20017063]
[1763308670376,0.00045081,94763.0,94762.0,0.10021063]
[1763308670551,0.00045081,94763.0,94762.0,0.00085851]
[1763308671004,0.00045081,94763.0,94762.0,0.10021063]
[1763308671839,0.00045081,94763.0,94762.0,0.00085851]
[1763308672042,0.00045081,94763.0,94762.0,0.00091851]
[1763308672467,0.00045081,94763.0,94762.0,0.00097851]
[1763308672869,0.00045081,94763.0,94762.0,0.00103851]
[1763308673780,0.0002,94790.0,94789.0,0.21099494]
[1763308673999,0.0002,94810.0,94809.0,0.21095043]
[1763308674201,0.00033526,94810.0,94809.0,0.25799043]
[1763308675167,0.00033526,94810.0,94809.0,0.04704]
[1763308676279,0.00033526,94810.0,94809.0,0.0471]
[1763308676475,0.00033526,94810.0,94809.0,0.14712]
[1763308676862,0.00033526,94810.0,94809.0,0.04722]
[1763308679941,0.0002,94830.0,94829.0,0.21090594]
[1763308680171,0.0002,94830.0,94809.0,0.04722]
[1763308680378,0.0002,94830.0,94829.0,0.04704]
[1763308680955,0.21092367,94822.0,94820.0,0.04704]
[1763308681167,0.0002,94830.0,94809.0,0.00018]
[1763308681168,0.21094619,94811.0,94809.0,0.00018]
[1763308681380,0.34224005,94810.0,94809.0,1e-08]
[1763308681581,0.34224005,94810.0,94753.0,0.04533]
[1763308681582,0.21100385,94785.0,94753.0,0.04533]
[1763308681773,0.2302439,94785.0,94784.0,0.00038451]
[1763308681914,0.5532439,94785.0,94784.0,0.00038451]
[1763308682340,0.5532439,94785.0,94700.0,0.01999998]
[1763308682341,0.21118815,94703.0,94700.0,0.01999998]
[1763308682560,0.53635675,94710.0,94657.0,0.03955532]
[1763308682759,0.01056189,94680.0,94658.0,0.00959066]
[1763308682960,0.01056077,94690.0,94657.0,0.04000546]
[1763308683170,0.59641752,94690.0,94657.0,0.00045014]
[1763308683568,0.21126961,94666.0,94657.0,0.00045014]
[1763308683765,0.01056189,94680.0,94657.0,0.00045014]
[1763308683971,0.53635675,94670.0,94657.0,0.00045014]
[1763308684175,0.01921086,94669.0,94657.0,0.00045014]
[1763308684311,0.21125347,94673.0,94657.0,0.00045014]
[1763308684510,0.54691864,94680.0,94657.0,0.00045014]
[1763308684511,0.21125793,94671.0,94657.0,0.00045014]
[1763308684715,0.01918569,94670.0,94657.0,0.00045014]
[1763308684950,0.21125367,94673.0,94657.0,0.00045014]
[1763308685410,0.21128215,94661.0,94660.0,0.0004]
[1763308685613,0.55344496,94661.0,94660.0,0.0004]
[1763308685830,0.23044496,94661.0,94660.0,0.0004]
[1763308686018,0.21126883,94667.0,94660.0,0.0004]
[1763308686221,0.323,94679.0,94660.0,0.0004]
[1763308686427,0.21125321,94674.0,94660.0,0.0004]
[1763308686624,0.21124454,94677.0,94660.0,0.0004]
[1763308686825,0.21127575,94664.0,94660.0,0.0004]
[1763308687386,0.01056189,94680.0,94660.0,0.0004]
[1763308687387,0.01056077,94690.0,94662.0,0.21127802]
[1763308687585,0.01914119,94689.0,94663.0,0.12868382]
[1763308687789,0.21123005,94684.0,94663.0,0.09358]
[1763308687993,0.21118994,94702.0,94664.0,0.11470735]
[1763308688188,0.01055854,94710.0,94670.0,0.010563]
[1763308688416,0.21120276,94696.0,94671.0,0.09358]
[1763308688662,0.21119324,94700.0,94676.0,0.2112462]
[1763308688814,0.21119324,94702.0,94676.0,0.2112462]
[1763308689018,0.21119324,94702.0,94677.0,0.09358]
[1763308689221,0.21119324,94702.0,94682.0,0.21123309]
[1763308689424,0.21119324,94702.0,94677.0,0.09358]
[1763308689425,0.09935212,94754.0,94690.0,0.54691752]
[1763308689632,0.09935212,94754.0,94717.0,0.04533]
[1763308689633,0.21112822,94730.0,94717.0,0.04533]
[1763308689829,0.0105552,94740.0,94717.0,0.04533]
[1763308689830,0.21113235,94728.0,94717.0,0.04533]
[1763308690098,0.0105552,94740.0,94718.0,0.09358]
[1763308690471,0.21114716,94721.0,94717.0,0.04533]
[1763308690686,0.21114716,94721.0,94718.0,0.00013527]
[1763308690849,0.21111521,94735.0,94718.0,0.00013527]
[1763308691049,0.21113728,94726.0,94718.0,0.00013527]
[1763308691254,0.0105552,94740.0,94719.0,0.09358]
[1763308691511,0.2111063,94739.0,94719.0,0.09358]
[1763308691683,0.0105552,94740.0,94719.0,0.09358]
[1763308692125,0.21112654,94730.0,94719.0,0.09358]
[1763308692327,0.0105552,94740.0,94719.0,0.09358]
[1763308692527,0.21113007,94729.0,94719.0,0.09358]
[1763308692982,0.0105552,94740.0,94719.0,0.09358]
[1763308692983,0.21114561,94722.0,94719.0,0.09358]
[1763308693190,0.21114561,94722.0,94718.0,0.00013527]
[1763308693191,0.21114674,94721.0,94718.0,0.00013527]
[1763308694566,0.21115087,94719.0,94718.0,0.00013527]
[1763308694926,0.55327263,94719.0,94718.0,0.00013527]
[1763308695125,0.55327263,94719.0,94661.0,0.21127969]
[1763308695126,0.01056077,94690.0,94660.0,0.0004]
[1763308695337,0.21130257,94651.0,94650.0,0.48536]
[1763308695548,0.21130257,94651.0,94630.0,0.0004]
[1763308695549,0.21134723,94631.0,94630.0,0.0004]
[1763308695761,0.21179709,94631.0,94630.0,0.0004]
[1763308696985,0.55386509,94631.0,94630.0,0.0004]
[1763308697183,0.53479709,94631.0,94630.0,0.0004]
[1763308697393,0.57821583,94631.0,94630.0,0.0004]
[1763308697794,0.57779947,94616.0,94600.0,0.045285]
[1763308698198,0.21138073,94616.0,94600.0,0.045285]
[1763308698613,0.25479947,94616.0,94615.0,0.0050111]
[1763308699971,0.21138073,94616.0,94615.0,0.0050111]
[1763308700402,0.21138073,94616.0,94615.0,0.00969844]
[1763308702291,0.74770621,94630.0,94615.0,0.00969844]
[1763308702292,0.00050986,94631.0,94616.0,0.09212]
[1763308702495,0.00050986,94631.0,94621.0,0.2113676]
[1763308702703,0.53635675,94670.0,94637.0,0.2113329]
[1763308702704,0.010563,94670.0,94637.0,0.2113329]
[1763308702924,0.21132936,94639.0,94637.0,0.00013497]
[1763308703328,0.323,94638.0,94637.0,0.00013497]
[1763308703529,0.04341874,94638.0,94637.0,0.00013497]
[1763308703772,0.21128471,94659.0,94637.0,0.00013497]
[1763308703978,0.21133023,94639.0,94637.0,0.00013497]
[1763308704382,0.21130693,94650.0,94637.0,0.00013497]
[1763308704600,0.00712281,94670.0,94637.0,0.00013497]
[1763308704808,0.2113316,94638.0,94637.0,0.00013497]
[1763308705006,0.09935212,94659.0,94637.0,0.00013497]
[1763308705007,0.42235212,94659.0,94637.0,0.00013497]
[1763308705206,0.2113316,94638.0,94637.0,0.00013497]
[1763308705830,0.57775034,94638.0,94637.0,0.00013497]
[1763308706337,0.25479947,94616.0,94615.0,0.0050111]
[1763308706537,0.57793427,94616.0,94615.0,0.0050111]
[1763308708059,0.57783299,94601.0,94600.0,0.045285]
[1763308708484,0.57783299,94601.0,94600.0,0.05038918]
[1763308709094,0.67718511,94601.0,94600.0,0.05038918]
[1763308709511,0.21141425,94601.0,94600.0,0.05038918]
[1763308709723,0.21139964,94608.0,94600.0,0.05038918]
[1763308709928,0.21140132,94607.0,94600.0,0.045285]
[1763308710133,0.21141425,94601.0,94600.0,0.045285]
[1763308710527,0.21140387,94606.0,94600.0,0.045285]
[1763308710779,0.0001348,94616.0,94600.0,0.045285]
[1763308710780,0.09935212,94602.0,94600.0,0.045285]
[1763308710985,0.553487,94601.0,94600.0,0.045285]
[1763308711207,0.59690574,94601.0,94600.0,0.045285]
[1763308711413,0.59690574,94601.0,94530.0,0.48405514]
[1763308711414,0.01057305,94580.0,94550.0,0.00552542]
[1763308711630,0.21152407,94552.0,94550.0,0.00552542]
[1763308711830,0.02057304,94580.0,94553.0,0.21152158]
[1763308711831,0.01057305,94580.0,94553.0,0.21152158]
[1763308712038,0.21149259,94566.0,94551.0,0.308136]
[1763308712240,0.01057305,94580.0,94551.0,0.308136]
[1763308712241,0.21152186,94553.0,94551.0,0.09661]
[1763308712460,0.01057305,94580.0,94550.0,0.00552542]
[1763308712670,0.00013472,94580.0,94552.0,0.09661]
[1763308712872,0.00013472,94580.0,94560.0,0.01057529]
[1763308713078,0.00013472,94580.0,94570.0,0.21148178]
[1763308713282,0.01070777,94580.0,94550.0,0.00552542]
[1763308713501,0.04341874,94578.0,94550.0,0.00552542]
[1763308713703,0.01910604,94577.0,94551.0,0.09661]
[1763308713885,0.00013472,94580.0,94551.0,0.09661]
[1763308714126,0.21149012,94568.0,94551.0,0.09661]
[1763308714334,0.21149668,94565.0,94551.0,0.09661]
[1763308714550,0.21146979,94577.0,94551.0,0.09661]
[1763308714775,0.21147395,94575.0,94556.0,0.21151275]
[1763308714984,0.01070777,94580.0,94561.0,0.21150211]
[1763308714985,0.21146343,94579.0,94561.0,0.21150211]
[1763308715190,0.00013472,94580.0,94557.0,0.09661]
[1763308715191,0.00013472,94580.0,94576.0,0.04988]
[1763308715629,0.00013472,94580.0,94579.0,0.00568798]
[1763308716971,0.36655346,94580.0,94579.0,0.00568798]
[1763308717185,0.38564605,94580.0,94579.0,0.00568798]
[1763308717872,0.31087817,94551.0,94550.0,0.00552542]
[1763308718112,0.35429691,94551.0,94550.0,0.00552542]
[1763308718574,0.67729691,94551.0,94550.0,0.00552542]
[1763308719039,0.67743156,94551.0,94550.0,0.00552542]
[1763308719716,0.00013465,94551.0,94550.0,0.00552542]
[1763308720827,0.00013465,94551.0,94500.0,10.37265969]
[1763308720828,0.04341874,94529.0,94500.0,10.37265969]
[1763308721047,0.21159319,94521.0,94500.0,10.37265969]
[1763308722299,0.21163349,94503.0,94500.0,10.37265969]
[1763308722729,0.00013457,94521.0,94502.0,0.09711]
[1763308722947,0.00013457,94521.0,94503.0,0.02116334]
[1763308723166,0.21156296,94535.0,94515.0,0.2116055]
[1763308723377,0.01057753,94540.0,94516.0,0.21160438]
[1763308723588,0.2115529,94539.0,94522.0,0.21159051]
[1763308723798,0.2115355,94547.0,94523.0,0.09661]
[1763308724025,0.21155984,94536.0,94523.0,0.09661]
[1763308724237,0.21158329,94526.0,94523.0,0.09661]
[1763308724445,0.01057753,94540.0,94515.0,0.00044986]
[1763308724651,0.21158063,94527.0,94519.0,0.09661]
[1763308724865,0.21159542,94520.0,94515.0,0.00044986]
[1763308725084,0.21160438,94516.0,94515.0,0.00044986]
[1763308725290,0.21159236,94522.0,94515.0,0.00044986]
[1763308725463,0.21160172,94518.0,94515.0,0.00044986]
[1763308725730,0.01057753,94540.0,94516.0,0.09661]
[1763308725731,0.02811629,94540.0,94516.0,0.09661]
[1763308725928,0.01921908,94539.0,94516.0,0.09661]
[1763308726143,0.01921908,94539.0,94535.0,0.21156141]
[1763308726351,0.01921908,94538.0,94533.0,0.21156629]
[1763308726595,0.01921908,94537.0,94534.0,0.09661]
[1763308726802,0.02263667,94544.0,94541.0,0.21154705]
[1763308727017,0.01923577,94543.0,94541.0,0.211547]
[1763308727223,0.02811629,94563.0,94552.0,0.21152221]
[1763308727427,0.02811629,94569.0,94564.0,0.21149606]
[1763308727630,0.01924337,94568.0,94562.0,0.04988]
[1763308727842,0.01924337,94567.0,94563.0,0.30810921]
[1763308728045,0.01924337,94566.0,94565.0,0.21149282]
[1763308728256,0.03756727,94584.0,94566.0,0.09661]
[1763308728462,0.21145672,94582.0,94567.0,0.21149026]
[1763308728667,0.21146312,94580.0,94566.0,0.09661]
[1763308728874,0.21146643,94578.0,94566.0,0.09661]
[1763308729108,0.01924675,94577.0,94552.0,0.00012]
[1763308729312,0.01924675,94576.0,94552.0,0.00018]
[1763308729539,0.23072136,94575.0,94552.0,0.00024]
[1763308729740,0.09935212,94579.0,94552.0,0.00024]